bitfinex-derivatives/quotes_SOLF0:USTF0_20240924
["timestamp","ask_amount","ask_price","bid_price","bid_amount"]
[1727172450736,3.4052,146.84,146.81,9.43]
[1727172451242,9.43,146.86,146.81,9.43]
[1727172451243,3.405,146.85,146.81,9.43]
[1727172451536,3.405,146.85,146.82,9.43]
[1727172451831,3.405,146.85,146.83,9.43]
[1727172452538,3.405,146.85,146.81,9.43]
[1727172453839,3.405,146.85,146.83,9.43]
[1727172455034,21.01888566,146.87,146.84,9.43]
[1727172455035,14.99358566,146.87,146.84,9.43]
[1727172455232,14.99358566,146.87,146.86,9.43]
[1727172455438,3.4047,146.87,146.86,9.43]
[1727172455837,3.4044,146.88,146.86,9.43]
[1727172456336,11.58569334,146.9,146.86,9.43]
[1727172456532,3.4044,146.88,146.86,9.43]
[1727172456937,11.58569334,146.9,146.86,9.43]
[1727172457137,24.37108103,146.91,146.86,9.43]
[1727172457931,3.4043,146.88,146.86,9.43]
[1727172459139,3.4045,146.87,146.84,9.43]
[1727172459444,9.43,146.88,146.82,1.3794]
[1727172459634,9.43,146.88,146.83,9.43]
[1727172459831,9.43,146.88,146.84,9.43]
[1727172460934,3.4047,146.86,146.84,9.43]
[1727172461535,9.43,146.88,146.84,9.43]
[1727172461937,9.43,146.87,146.81,1.366]
[1727172462241,3.4051,146.85,146.82,9.43]
[1727172466537,9.43,146.86,146.82,9.43]
[1727172467046,9.43,146.83,146.77,1.3901]
[1727172467338,9.43,146.81,146.76,9.43]
[1727172467539,9.43,146.81,146.75,10.7575]
[1727172468138,3.4065,146.79,146.75,10.7575]
[1727172468735,3.4062,146.8,146.78,9.43]
[1727172469144,2.99735541,146.87,146.78,106.0]
[1727172469446,9.43,146.88,146.83,9.43]
[1727172469643,6.77405367,146.87,146.83,9.43]
[1727172469948,3.36935367,146.87,146.79,2.746]
[1727172470139,3.4049,146.86,146.81,9.43]
[1727172470340,6.89427113,146.86,146.79,20.8722]
[1727172470640,6.89427113,146.86,146.79,17.466]
[1727172471045,3.4046,146.87,146.8,3.406]
[1727172471242,3.4046,146.87,146.79,16.1105]
[1727172471445,18.06412273,146.89,146.79,16.1105]
[1727172471646,3.4049,146.86,146.79,19.5167]
[1727172472136,3.4049,146.86,146.8,3.4061]
[1727172472338,3.4046,146.87,146.8,3.4061]
[1727172473240,3.4048,146.86,146.8,3.4061]
[1727172473542,3.4048,146.86,146.79,19.5167]
[1727172474545,3.4048,146.86,146.8,3.4061]
[1727172475839,14.72,146.87,146.78,3.4064]
[1727172476044,1.4272,146.86,146.78,3.4064]
[1727172476651,3.4053,146.84,146.78,3.4064]
[1727172477649,3.4055,146.83,146.77,3.4068]
[1727172478842,1.4272,146.86,146.75,4.73205257]
[1727172478843,14.72,146.85,146.75,4.73205257]
[1727172479043,14.72,146.85,146.74,1.3199]
[1727172479044,14.72,146.83,146.74,1.3199]
[1727172479652,3.406,146.81,146.76,3.407]
[1727172480351,6.83885858,146.81,146.76,3.407]
[1727172480547,3.406,146.81,146.76,3.407]
[1727172481250,6.82351963,146.81,146.76,3.407]
[1727172481451,3.406,146.81,146.77,3.4068]
[1727172481651,3.406,146.81,146.74,16.0399]
[1727172482055,3.4058,146.82,146.74,16.0399]
[1727172482651,3.4058,146.82,146.77,3.4067]
[1727172485247,14.72,146.83,146.71,3.38820518]
[1727172485452,16.0449,146.81,146.72,14.72]
[1727172485647,3.37775797,146.8,146.72,14.72]
[1727172485852,16.0449,146.81,146.72,14.72]
[1727172486053,1.3218,146.8,146.72,14.72]
[1727172486354,3.4067,146.78,146.73,3.4076]
[1727172487054,3.42139473,146.79,146.74,3.4073]
[1727172487860,6.82789473,146.79,146.74,3.4073]
[1727172488055,3.42139473,146.79,146.74,3.4073]
[1727172489553,3.4068,146.77,146.7,2.6305]
[1727172489754,14.72,146.78,146.68,107.23768294]
[1727172489955,17.4362,146.8,146.68,107.23768294]
[1727172489956,14.72,146.76,146.68,107.23768294]
[1727172490156,3.4074,146.75,146.7,3.4083]
[1727172490561,14.72,146.76,146.68,107.23768294]
[1727172490764,3.4076,146.74,146.69,3.4086]
[1727172491765,3.4076,146.74,146.7,3.4084]
[1727172494356,3.4076,146.74,146.7,12.8384]
[1727172494964,12.8374,146.75,146.7,12.8384]
[1727172495363,3.4074,146.75,146.7,12.8384]
[1727172495565,3.4072,146.76,146.72,9.43]
[1727172496061,3.4067,146.78,146.74,9.43]
[1727172496366,9.43,146.79,146.74,9.43]
[1727172497155,3.4068,146.77,146.74,9.43]
[1727172497467,9.43,146.79,146.73,9.43]
[1727172497658,3.407,146.77,146.73,9.43]
[1727172498071,9.43,146.79,146.73,9.43]
[1727172498656,3.4069,146.77,146.73,9.43]
[1727172502669,3.4071,146.76,146.73,9.43]
[1727172503270,3.4071,146.76,146.71,3.4082]
[1727172503462,6.16342139,146.8,146.66,2.7511]
[1727172503668,9.43,146.72,146.67,9.43]
[1727172504066,9.43,146.72,146.66,2.7511]
[1727172504266,9.43,146.72,146.67,12.8389]
[1727172504868,9.43,146.72,146.67,9.43]
[1727172505670,12.838,146.72,146.67,12.8389]
[1727172505873,9.43,146.71,146.66,1.3634]
[1727172506171,26.62342139,146.8,146.64,95.95037518]
[1727172506172,9.43,146.69,146.64,95.95037518]
[1727172506478,9.43,146.69,146.65,9.43]
[1727172507875,9.43,146.69,146.65,12.8396]
[1727172508279,6.89529849,146.7,146.65,3.4096]
[1727172510577,3.4088,146.69,146.64,92.54057518]
[1727172510771,14.73,146.72,146.64,95.95037518]
[1727172510970,18.1023271,146.72,146.64,92.54057518]
[1727172511167,3.4087,146.7,146.65,3.4095]
[1727172511374,18.1023271,146.72,146.65,3.4095]
[1727172511680,3.4086,146.7,146.65,3.4095]
[1727172511976,18.1023271,146.72,146.64,95.95037518]
[1727172512574,3.4086,146.7,146.65,3.4095]
[1727172517585,3.4087,146.69,146.65,3.4095]
[1727172518281,3.4085,146.7,146.65,3.4095]
[1727172521121,3.4087,146.69,146.65,3.4095]
[1727172524489,3.4086,146.7,146.65,3.4095]
[1727172528298,9.43,146.69,146.65,3.4095]
[1727172528497,12.8387,146.69,146.65,3.4095]
[1727172529794,3.4083,146.71,146.67,9.43]
[1727172530796,3.4083,146.71,146.67,12.8391]
[1727172537501,3.4086,146.7,146.62,1.4065]
[1727172537806,3.4086,146.7,146.65,9.43]
[1727172538001,12.8387,146.69,146.65,3.4095]
[1727172545914,9.43,146.67,146.62,1.4065]
[1727172546112,9.43,146.67,146.63,9.43]
[1727172546315,12.839,146.68,146.64,12.8397]
[1727172546506,27.2692,146.87,146.67,9.43]
[1727172546712,9.43,146.8,146.75,9.43]
[1727172546910,4.71415339,146.81,146.77,9.43]
[1727172547910,4.71415339,146.81,146.75,3.4072]
[1727172547911,8.12005339,146.81,146.75,3.4072]
[1727172548116,9.43,146.79,146.74,9.43]
[1727172548716,9.43,146.79,146.75,9.43]
[1727172549116,17.55005339,146.81,146.76,9.43]
[1727172549419,8.12005339,146.81,146.76,9.43]
[1727172549819,4.7069,146.81,146.76,9.43]
[1727172551313,4.7069,146.81,146.76,12.837]
[1727172552723,8.09364256,146.81,146.76,12.837]
[1727172554320,8.09364256,146.81,146.76,9.43]
[1727172555717,8.09364256,146.81,146.76,12.837]
[1727172556318,1.3536,146.82,146.78,9.43]
[1727172557818,4.7593,146.82,146.78,9.43]
[1727172560424,1.4384,146.85,146.71,2.8653]
[1727172560628,9.43,146.83,146.78,9.43]
[1727172561224,3.4058,146.82,146.78,9.43]
[1727172562923,16.20899615,146.81,146.76,3.407]
[1727172563124,12.8359,146.81,146.76,12.837]
[1727172563828,16.26796994,146.81,146.76,12.837]
[1727172570829,16.26796994,146.81,146.77,9.43]
[1727172573034,3.4059,146.81,146.77,9.43]
[1727172574330,3.4059,146.81,146.78,9.43]
[1727172583741,3.4059,146.81,146.72,1.382]
[1727172583944,3.4059,146.81,146.78,9.43]
[1727172584150,3.4061,146.8,146.77,9.43]
[1727172592954,9.43,146.79,146.72,1.382]
[1727172593150,9.43,146.79,146.74,9.43]
[1727172593858,3.4067,146.78,146.74,12.8374]
[1727172598143,3.4067,146.78,146.75,9.43]
[1727172600351,3.4067,146.78,146.76,9.43]
[1727172601248,3.34605944,146.81,146.77,9.43]
[1727172601455,9.43,146.82,146.77,9.43]
[1727172602050,3.33367423,146.81,146.77,9.43]
[1727172602647,9.43,146.81,146.75,9.43]
[1727172602852,9.43,146.8,146.72,1.382]
[1727172603051,9.43,146.8,146.76,9.43]
[1727172603255,3.4065,146.79,146.76,9.43]
[1727172603450,9.43,146.81,146.76,9.43]
[1727172603753,3.4052,146.84,146.8,9.43]
[1727172606157,9.43,146.86,146.8,9.43]
[1727172606550,3.4052,146.84,146.8,9.43]
[1727172614874,9.43,146.84,146.79,3.4062]
[1727172615071,9.43,146.81,146.73,1.3158]
[1727172615371,9.43,146.81,146.76,9.43]
[1727172616764,12.836,146.81,146.77,3.4068]
[1727172618468,12.836,146.81,146.77,12.8368]
[1727172620079,3.406,146.81,146.78,9.43]
[1727172620782,3.406,146.81,146.77,12.8368]
[1727172621977,12.836,146.81,146.77,3.4068]
[1727172625886,3.406,146.81,146.77,12.8368]
[1727172630083,9.43,146.82,146.78,3.4064]
[1727172630291,9.43,146.83,146.78,12.8364]
[1727172631486,12.8355,146.83,146.78,12.8364]
[1727172632086,3.4055,146.83,146.78,12.8364]
[1727172632482,12.93520192,146.86,146.8,9.43]
[1727172632681,22.36520192,146.86,146.81,9.43]
[1727172633185,3.4051,146.85,146.81,9.43]
[1727172634383,9.43,146.85,146.79,12.8363]
[1727172634583,9.43,146.83,146.78,9.43]
[1727172635185,3.4056,146.83,146.78,12.8365]
[1727172635377,12.8356,146.83,146.78,12.8365]
[1727172635777,3.4053,146.84,146.79,9.43]
[1727172635983,12.8353,146.84,146.79,9.43]
[1727172636687,3.405,146.85,146.8,9.43]
[1727172636883,12.93520192,146.86,146.82,9.43]
[1727172637087,12.93520192,146.86,146.82,12.8355]
[1727172638088,16.34000192,146.86,146.82,9.43]
[1727172639488,3.405,146.85,146.82,9.43]
[1727172639888,9.43,146.85,146.73,1.3158]
[1727172640081,3.4053,146.84,146.79,12.8362]
[1727172640281,9.43,146.85,146.79,9.43]
[1727172640894,3.4052,146.84,146.8,3.4061]
[1727172641399,3.4052,146.84,146.79,9.43]
[1727172642585,3.4052,146.84,146.79,12.8363]
[1727172642788,3.4052,146.84,146.8,9.43]
[1727172643488,12.93520192,146.86,146.74,3.4075]
[1727172643686,9.43,146.8,146.75,9.43]
[1727172644290,9.43,146.8,146.76,3.407]
[1727172644488,9.43,146.79,146.72,1.382]
[1727172644688,9.43,146.78,146.73,9.43]
[1727172644883,12.8367,146.78,146.72,1.382]
[1727172645093,12.8367,146.78,146.73,9.43]
[1727172645394,12.8367,146.78,146.73,12.8376]
[1727172648693,3.4067,146.78,146.73,3.4076]
[1727172648899,9.43,146.74,146.67,81.78]
[1727172649101,6.8115,146.82,146.67,81.78]
[1727172649102,9.43,146.71,146.67,81.78]
[1727172649283,9.43,146.71,146.63,4.2035]
[1727172649284,3.409,146.68,146.64,3.4098]
[1727172649488,3.409,146.68,146.64,12.8398]
[1727172649695,3.409,146.68,146.64,3.4098]
[1727172649894,3.409,146.68,146.64,12.8398]
[1727172650089,3.409,146.68,146.64,3.4098]
[1727172650293,3.409,146.68,146.64,12.8398]
[1727172650702,12.8388,146.69,146.64,12.8398]
[1727172650900,9.43,146.69,146.63,7.6135]
[1727172651100,9.43,146.69,146.64,9.43]
[1727172651299,12.82537598,146.69,146.63,9.43]
[1727172651503,9.43,146.66,146.59,23.73586033]
[1727172651803,9.43,146.66,146.61,9.43]
[1727172651997,12.8395,146.66,146.61,12.8404]
[1727172652197,9.43,146.63,146.59,22.39486033]
[1727172652593,3.4105,146.62,146.59,22.39486033]
[1727172653201,12.84033165,146.63,146.59,22.39486033]
[1727172654303,3.41033165,146.63,146.59,22.39486033]
[1727172654493,18.8492,146.65,146.59,22.39486033]
[1727172654892,18.8492,146.65,146.6,4.93866044]
[1727172655102,22.30575423,146.65,146.6,4.93866044]
[1727172655400,3.4102,146.63,146.6,4.93866044]
[1727172656607,3.4102,146.63,146.55,14.75]
[1727172656608,3.4102,146.63,146.57,3.4115]
[1727172664999,7.55575423,146.65,146.57,14.75]
[1727172665908,10.96545423,146.65,146.57,14.75]
[1727172666205,3.45655423,146.65,146.57,14.75]
[1727172666509,18.14965733,146.68,146.59,14.75]
[1727172666700,3.39965733,146.68,146.59,14.75]
[1727172666906,14.75,146.7,146.59,14.75]
[1727172667904,3.4095,146.66,146.61,3.4105]
[1727172668111,6.81733457,146.66,146.61,3.4105]
[1727172668313,14.75,146.7,146.59,14.75]
[1727172668609,3.4093,146.67,146.59,14.75]
[1727172668810,6.8225942,146.67,146.59,14.75]
[1727172669012,3.4132942,146.67,146.59,14.75]
[1727172669210,14.75,146.7,146.59,14.75]
[1727172669407,4.0826,146.71,146.59,14.75]
[1727172669408,14.75,146.68,146.59,14.75]
[1727172669601,18.24041151,146.68,146.59,14.75]
[1727172670005,3.4095,146.66,146.61,3.4104]
[1727172674710,3.4095,146.66,146.62,3.4102]
[1727172675218,3.4091,146.67,146.62,3.4102]
[1727172675718,18.24041151,146.68,146.62,3.4102]
[1727172676522,12.8394,146.66,146.61,12.8403]
[1727172677114,12.8396,146.65,146.6,3.4107]
[1727172677511,9.43,146.62,146.57,92.5991444]
[1727172677707,9.43,146.61,146.57,92.5991444]
[1727172678313,12.8406,146.61,146.57,96.0105444]
[1727172678505,12.8406,146.61,146.57,92.5991444]
[1727172678707,16.18677872,146.61,146.57,92.5991444]
[1727172680217,9.43,146.59,146.57,92.5991444]
[1727172680820,16.18677872,146.61,146.57,92.5991444]
[1727172681913,3.4108,146.6,146.57,92.5991444]
[1727172685719,12.8408,146.6,146.57,92.5991444]
[1727172686918,12.8408,146.6,146.56,3.4116]
[1727172689123,3.4111,146.59,146.55,3.4118]
[1727172690323,3.4111,146.59,146.55,12.8418]
[1727172690828,3.4111,146.59,146.56,3.4116]
[1727172694028,3.4111,146.59,146.55,3.4118]
[1727172695128,3.4112,146.58,146.55,3.4118]
[1727172695924,3.4115,146.57,146.54,3.4121]
[1727172696130,12.8415,146.57,146.54,3.4121]
[1727172697228,3.4119,146.56,146.49,1.3663]
[1727172697530,3.4119,146.56,146.51,9.43]
[1727172698327,3.412,146.55,146.52,3.4125]
[1727172698833,1.4415,146.59,146.5,3.4129]
[1727172698834,3.4125,146.53,146.5,3.4129]
[1727172699033,3.4125,146.53,146.49,10.7963]
[1727172699336,12.8421,146.55,146.5,9.43]
[1727172699733,3.4122,146.54,146.51,3.4127]
[1727172700753,12.842,146.55,146.5,9.43]
[1727172701628,12.842,146.55,146.51,3.4127]
[1727172702127,3.4122,146.54,146.51,3.4127]
[1727172703334,12.842,146.55,146.51,3.4127]
[1727172704236,12.842,146.55,146.52,3.4125]
[1727172704436,3.412,146.55,146.52,3.4125]
[1727172705434,9.43,146.57,146.53,3.4123]
[1727172706134,12.8415,146.57,146.53,3.4123]
[1727172706641,9.43,146.57,146.53,3.4123]
[1727172706939,60.64739914,146.6,146.55,9.43]
[1727172707138,70.07739914,146.6,146.55,9.43]
[1727172707531,70.07739914,146.6,146.55,12.8418]
[1727172707845,9.43,146.59,146.54,9.43]
[1727172708035,12.8411,146.59,146.54,12.842]
[1727172708848,12.8411,146.59,146.55,3.4119]
[1727172709341,12.8411,146.59,146.54,9.43]
[1727172709536,9.43,146.59,146.54,9.43]
[1727172710837,12.8411,146.59,146.54,9.43]
[1727172711237,12.8411,146.59,146.54,12.842]
[1727172719746,12.8411,146.59,146.55,9.43]
[1727172720354,3.4112,146.58,146.55,9.43]
[1727172722954,3.4109,146.6,146.56,12.8416]
[1727172723752,9.43,146.59,146.49,1.3663]
[1727172723953,9.43,146.59,146.55,9.43]
[1727172724552,12.8412,146.59,146.55,12.8419]
[1727172725254,3.4113,146.58,146.55,12.8419]
[1727172725853,3.4113,146.58,146.55,9.43]
[1727172729745,3.4113,146.58,146.55,12.8418]
[1727172730151,3.4115,146.57,146.54,9.43]
[1727172731053,3.4115,146.57,146.54,12.8421]
[1727172733258,3.4118,146.56,146.54,9.43]
[1727172735051,6.8173,146.7,146.55,9.43]
[1727172735253,3.38988257,146.65,146.6,9.43]
[1727172735459,12.81988257,146.65,146.6,9.43]
[1727172735768,3.4102,146.63,146.6,9.43]
[1727172736162,3.4099,146.64,146.6,12.8407]
[1727172737064,3.4097,146.65,146.6,9.43]
[1727172737360,3.4097,146.65,146.61,12.8404]
[1727172738268,9.43,146.63,146.54,1.3278]
[1727172738471,9.43,146.62,146.54,1.3278]
[1727172738663,9.43,146.6,146.55,9.43]
[1727172738967,9.43,146.6,146.56,3.4115]
[1727172739568,12.8407,146.61,146.56,3.4115]
[1727172739870,12.8407,146.61,146.57,3.4114]
[1727172740368,3.4107,146.61,146.57,3.4114]
[1727172742774,12.8407,146.61,146.57,3.4114]
[1727172744867,9.43,146.61,146.56,9.43]
[1727172745070,12.8403,146.62,146.56,9.43]
[1727172745263,9.43,146.62,146.58,9.43]
[1727172745571,9.43,146.62,146.59,3.4109]
[1727172746673,3.4102,146.63,146.6,3.4107]
[1727172746869,2.803,146.64,146.6,9.43]
[1727172747471,2.803,146.64,146.61,3.4105]
[1727172754582,1.4253,146.65,146.62,3.4103]
[1727172755784,4.8349,146.65,146.62,3.4103]
[1727172756085,1.4253,146.65,146.57,3.48441092]
[1727172756385,4.835,146.65,146.6,9.43]
[1727172757477,14.265,146.65,146.61,3.4104]
[1727172759494,1.4253,146.65,146.61,3.4104]
[1727172761084,2.716,146.7,146.63,9.43]
[1727172761292,9.43,146.69,146.64,9.43]
[1727172761687,6.7877409,146.69,146.64,9.43]
[1727172762390,3.4089,146.68,146.64,12.8397]
[1727172762895,3.4092,146.67,146.63,12.84]
[1727172763486,12.8391,146.68,146.63,12.84]
[1727172765499,3.4092,146.67,146.63,12.84]
[1727172767998,3.4094,146.66,146.63,12.84]
[1727172768201,3.4094,146.66,146.62,3.4102]
[1727172770804,3.4094,146.66,146.63,3.41]
[1727172770999,3.4094,146.66,146.61,9.43]
[1727172771400,3.4094,146.66,146.62,3.4102]
[1727172773296,3.4097,146.65,146.62,3.4102]
[1727172774905,3.4097,146.65,146.61,12.8404]
[1727172775103,12.8397,146.65,146.61,12.8404]
[1727172775404,3.4098,146.64,146.61,12.8404]
[1727172778797,3.4098,146.64,146.61,3.4104]
[1727172779205,3.4101,146.63,146.6,3.4107]
[1727172781101,3.4101,146.63,146.61,3.4105]
[1727172781308,9.43,146.64,146.61,3.4105]
[1727172781309,3.4099,146.64,146.61,3.4105]
[1727172783504,9.43,146.65,146.61,3.4105]
[1727172783505,3.4101,146.63,146.61,3.4105]
[1727172784902,9.43,146.62,146.53,7.78193209]
[1727172785105,9.43,146.62,146.57,9.43]
[1727172785913,3.4106,146.61,146.59,3.4109]
[1727172786608,12.8404,146.62,146.59,3.4109]
[1727172786913,3.36812934,146.64,146.56,3.4116]
[1727172786914,9.43,146.61,146.56,3.4116]
[1727172787104,9.43,146.61,146.56,9.43]
[1727172787503,3.4109,146.6,146.57,3.4113]
[1727172790109,3.4109,146.6,146.58,3.4112]
[1727172791014,12.8406,146.61,146.58,3.4112]
[1727172794415,3.4104,146.62,146.59,3.411]
[1727172800625,3.4104,146.62,146.58,3.4111]
[1727172802318,3.4104,146.62,146.59,3.411]
[1727172804424,3.4104,146.62,146.58,3.4111]
[1727172808327,6.8176,146.69,146.58,9.43]
[1727172808520,9.43,146.64,146.58,9.43]
[1727172809229,12.84,146.64,146.6,3.4106]
[1727172811429,9.43,146.63,146.6,3.4106]
[1727172812523,12.8401,146.63,146.6,3.4106]
[1727172814434,9.43,146.63,146.53,2.7386]
[1727172814627,9.43,146.62,146.57,9.43]
[1727172815133,3.4107,146.61,146.58,3.4111]
[1727172815327,9.43,146.63,146.57,9.43]
[1727172815636,3.4103,146.62,146.59,3.4109]
[1727172816836,3.4102,146.63,146.6,3.4106]
[1727172817029,3.4102,146.63,146.6,12.8406]
[1727172818638,9.43,146.62,146.57,9.43]
[1727172819138,3.4105,146.61,146.58,3.4111]
[1727172819538,12.8404,146.62,146.58,3.4111]
[1727172824138,3.4106,146.61,146.58,3.4111]
[1727172824338,3.4106,146.61,146.59,3.411]
[1727172828744,3.4106,146.61,146.59,12.841]
[1727172828946,3.4102,146.63,146.59,12.841]
[1727172829146,9.43,146.64,146.59,12.841]
[1727172829545,9.43,146.64,146.54,92.62649948]
[1727172829741,9.43,146.64,146.58,9.43]
[1727172830748,3.4104,146.62,146.59,3.4109]
[1727172832443,9.43,146.63,146.54,92.62649948]
[1727172832644,9.43,146.63,146.58,9.43]
[1727172833545,3.4104,146.62,146.54,92.62649948]
[1727172833743,3.4104,146.62,146.59,9.43]
[1727172834841,3.4104,146.62,146.59,12.8409]
[1727172837647,3.4102,146.63,146.59,12.8409]
[1727172838439,9.43,146.64,146.59,9.43]
[1727172838653,9.43,146.62,146.58,12.8411]
[1727172839055,9.43,146.61,146.58,3.4111]
[1727172839246,9.43,146.6,146.54,92.62649948]
[1727172839647,12.8414,146.58,146.54,105.46849948]
[1727172840459,12.8414,146.58,146.55,3.4119]
[1727172840654,12.8414,146.58,146.55,8.35605173]
[1727172841153,3.4115,146.57,146.55,4.94415173]
[1727172841358,9.43,146.58,146.55,4.94415173]
[1727172842751,3.4115,146.57,146.55,4.94415173]
[1727172844155,3.4115,146.57,146.54,105.46849948]
[1727172847961,3.4119,146.55,146.54,92.62649948]
[1727172848350,9.43,146.57,146.54,92.62649948]
[1727172848561,3.4118,146.56,146.54,92.62649948]
[1727172850156,3.4119,146.55,146.52,3.4126]
[1727172850853,3.4122,146.54,146.52,3.4126]
[1727172851051,9.43,146.56,146.52,3.4126]
[1727172851253,9.43,146.56,146.52,12.8426]
[1727172851454,3.412,146.55,146.52,12.8426]
[1727172852251,3.412,146.55,146.52,3.4126]
[1727172852456,3.412,146.55,146.52,12.8426]
[1727172854561,3.4122,146.54,146.52,12.8426]
[1727172856258,3.4122,146.54,146.51,12.8428]
[1727172857268,3.4122,146.54,146.52,3.4126]
[1727172857670,3.412,146.55,146.52,3.4126]
[1727172857867,3.412,146.55,146.52,12.8426]
[1727172858065,3.412,146.55,146.53,3.4124]
[1727172858966,9.43,146.58,146.54,12.8421]
[1727172859171,13.5951,146.6,146.54,9.43]
[1727172859662,3.4115,146.57,146.55,3.4118]
[1727172860763,3.4113,146.58,146.55,3.4118]
[1727172864567,3.4113,146.58,146.54,12.8421]
[1727172865776,3.4115,146.57,146.54,3.4121]
[1727172868682,9.43,146.56,146.52,3.4125]
[1727172869182,3.4121,146.55,146.52,3.4125]
[1727172870174,9.43,146.56,146.52,3.4125]
[1727172870382,3.4122,146.54,146.52,3.4125]
[1727172873690,9.43,146.56,146.53,3.4124]
[1727172874378,9.43,146.57,146.53,3.4124]
[1727172874682,3.4121,146.55,146.53,3.4124]
[1727172874888,3.4121,146.55,146.52,12.8425]
[1727172875885,3.4121,146.55,146.53,3.4123]
[1727172879597,3.4121,146.55,146.52,12.8425]
[1727172882884,3.4121,146.55,146.53,9.43]
[1727172884288,3.4121,146.55,146.53,3.4124]
[1727172887801,59.26104756,146.59,146.53,9.43]
[1727172887993,59.26104756,146.59,146.56,9.43]
[1727172889194,3.4114,146.58,146.56,9.43]
[1727172889794,3.4114,146.58,146.55,3.4118]
[1727172891592,3.4115,146.57,146.55,3.4118]
[1727172895805,3.4115,146.57,146.54,3.412]
[1727172896105,9.43,146.58,146.54,12.842]
[1727172896596,3.4116,146.57,146.54,12.842]
[1727172896802,3.4116,146.57,146.5,3.4462075]
[1727172896803,68.69104756,146.59,146.55,12.8418]
[1727172897405,3.4114,146.58,146.55,12.8418]
[1727172898807,3.4115,146.57,146.55,9.43]
[1727172903406,3.4115,146.57,146.55,12.8419]
[1727172907108,3.4115,146.57,146.55,3.4119]
[1727172908602,11.30046603,146.62,146.56,9.43]
[1727172908808,3.36495961,146.64,146.59,9.43]
[1727172909008,3.4103,146.63,146.6,3.4107]
[1727172909209,9.43,146.65,146.6,12.8407]
[1727172909601,3.4101,146.64,146.6,12.8407]
[1727172911803,12.8401,146.64,146.6,12.8407]
[1727172912808,12.8401,146.63,146.59,12.8409]
[1727172914417,3.4101,146.63,146.59,12.8409]
[1727172914712,3.4101,146.63,146.6,3.4107]
[1727172915109,12.8399,146.64,146.6,3.4107]
[1727172916417,3.4101,146.63,146.6,3.4107]
[1727172917917,3.4101,146.63,146.6,12.8407]
[1727172928221,3.4101,146.63,146.56,4.8714254]
[1727172928222,9.43,146.63,146.59,9.43]
[1727172929221,3.4104,146.62,146.59,12.841]
[1727172929919,3.4104,146.62,146.6,3.4108]
[1727172931314,3.4104,146.62,146.6,12.8408]
[1727172931619,65.42030617,146.67,146.61,9.43]
[1727172931822,224.0,146.8,146.66,9.43]
[1727172932016,9.43,146.72,146.67,9.43]
[1727172932412,3.4083,146.71,146.67,12.839]
[1727172932616,9.43,146.71,146.66,9.43]
[1727172933321,3.4088,146.69,146.66,9.43]
[1727172933926,3.4089,146.68,146.65,12.8394]
[1727172934224,3.4089,146.68,146.57,4.7221366]
[1727172934225,9.43,146.68,146.63,9.43]
[1727172935023,3.4092,146.67,146.63,12.8399]
[1727172937118,3.4092,146.67,146.64,3.4098]